Cogmind - Beta 9.6 @@@ ROGUE MODE // 2020.07.30 @ 01:29:59 Player: zeramoth Result: Self-destructed Performance ------------- Evolutions (6) 3000 Regions Visited (10) 2000 Robots Destroyed (61) 305 Value Destroyed (2916) 2916 Prototype IDs (4) 80 Alien Tech Used (0) 0 Bonus (300) 300 TOTAL SCORE: 8601 Bonus ------- Aligned with FarCom 300 Cogmind --------- Core Integrity 791/1150 Matter 271/300 Energy 170/170 System Corruption 3% Temperature Cool (0) Movement Hovering (180) Ox2 Location -4/Factory Parts ------- > --- POWER (2) -------- Micro Fission Core > --- PROPULSION (4) --- Antigrav System > --- UTILITY (10) ----- Medium Storage Unit Large Storage Unit Experimental Optical Array Advanced Signal Interpreter EM Shield Improved Hacking Suite Advanced Hacking Suite > --- WEAPON (3) ------- Improved Proton Missile Launcher Great Maul > --- INVENTORY (14) --- Improved Ion Engine Micro Nuclear Core Neutrino Core Neutrino Core Micro Fission Core Micro Fission Core Armored Huge Wheel Heat Sink Advanced Heat Sink Peak State ------------ > --- POWER ------------ Micro Fission Core Light Antimatter Reactor > --- PROPULSION ------- Armored Huge Wheel Centrium Wheel > --- UTILITY ---------- Medium Storage Unit Large Storage Unit Experimental Optical Array Advanced Signal Interpreter Quantum Capacitor Improved Transmission Jammer EM Shield Improved Hacking Suite Advanced Hacking Suite > --- WEAPON ----------- Shock Maul Power Sword Longsword +1 > --- INVENTORY -------- Improved Ion Engine Micro Nuclear Core Neutrino Core Neutrino Core Micro Fission Core Micro Fission Core Armored Huge Wheel Heat Sink Advanced Heat Sink Improved Proton Missile Launcher Great Maul Chainsword [Rating: 99] Favorites ----------- Power Neutrino Core Engine Heavy Ion Engine Power Core Neutrino Core Reactor Light Antimatter Reactor Propulsion Armored Huge Wheel Leg Aluminum Leg Wheel Armored Huge Wheel Hover Unit Airjet Flight Unit Flight Unit Utility Large Storage Unit Device Improved Shield Generator Storage Large Storage Unit Processor Enhanced Optical Array Hackware Improved Hacking Suite Protection Improved Medium Armor Plating Weapon Longsword +1 Energy Gun Medium Laser Ballistic Gun Autogun Launcher Improved Proton Missile Launcher Impact Weapon Great Maul Slashing Weapon Longsword +1 Build | -11 -10 -9 -9 -9 -8 -8 -7 -6 -5 -4 ------- Run | Scr Mat Mat Min Exi Min Mat Fac Fac Fac Fac Slots Evolved 12 | . . 2 . . . 2 2 2 2 2 Power 1 | . . . . . . . 1 . . . Propulsion 2 | . . . . . . 1 1 . . . Utility 8 | . . 2 . . . 1 . 1 2 2 Weapon 1 | . . . . . . . . 1 . . Parts Attached 80 | . 6 9 . 1 4 8 12 2 18 20 Power 15 | . 1 2 . . 1 . 4 . 5 2 Engine 5 | . 1 2 . . . . 2 . . . Core 9 | . . . . . 1 . 2 . 5 1 Reactor 1 | . . . . . . . . . . 1 Propulsion 17 | . 1 2 . . 1 3 3 . 1 6 Treads . | . . . . . . . . . . . Leg 2 | . 1 . . . . . . . . 1 Wheel 6 | . . . . . . . 2 . 1 3 Hover 6 | . . 2 . . 1 1 . . . 2 Flight 3 | . . . . . . 2 1 . . . Utility 30 | . 1 4 . . . 5 4 1 12 3 Device 9 | . . 1 . . . 1 1 . 4 2 Storage 4 | . . . . . . 2 1 . 1 . Processor 5 | . . 1 . . . . 1 . 3 . Hackware 3 | . . . . . . 1 . . 1 1 Protection 9 | . 1 2 . . . 1 1 1 3 . Artifact . | . . . . . . . . . . . Weapon 18 | . 3 1 . 1 2 . 1 1 . 9 Energy Gun 1 | . 1 . . . . . . . . . Energy Cannon . | . . . . . . . . . . . Ballistic Gun 2 | . 2 . . . . . . . . . Ballistic Cannon . | . . . . . . . . . . . Launcher 2 | . . . . . . . . . . 2 Special Weapon . | . . . . . . . . . . . Impact Weapon 7 | . . . . . 2 . 1 . . 4 Slashing Weapon 6 | . . 1 . 1 . . . 1 . 3 Piercing Weapon . | . . . . . . . . . . . Special Melee Weapon . | . . . . . . . . . . . Unidentified Prototypes 4 | . . 1 . 1 . . . . 1 1 Parts Lost 31 | . 3 . . . 2 6 4 . 5 11 Power 4 | . 1 . . . . 1 1 . . 1 Propulsion 11 | . 1 . . . 1 3 1 . . 5 Utility 9 | . . . . . . 1 2 . 5 1 Weapon 7 | . 1 . . . 1 1 . . . 4 Highest Loss Streak 5 | . 3 . . . 2 5 2 . 3 5 Average Slot Usage (%) 84 | . 91 85 88 97 93 81 74 81 86 79 Engine 4 | . 14 10 11 11 6 . 10 6 . . Core 6 | . . . . . 4 6 2 6 10 7 Leg 1 | . 28 4 . . . . . . . . Wheel 6 | . . . . . . . 10 13 10 8 Hover 5 | . . 17 22 22 22 17 . . . 1 Device 5 | . . 1 11 11 11 9 2 6 4 7 Storage 8 | . 14 11 11 11 11 9 7 6 6 10 Processor 13 | . . 10 11 11 11 9 12 13 17 16 Hackware 5 | . . . . . . 6 7 6 5 10 Protection 6 | . 5 9 11 11 11 2 2 1 9 . Ballistic Gun 1 | . 14 15 . . . . . . . . Impact Weapon 4 | . . . . . 4 5 6 6 5 4 Slashing Weapon 9 | . . 4 11 19 11 9 7 13 11 8 Naked Turns . | . . . . . . . . . . . Heaviest Build 75 | 11 20 28 16 19 19 22 44 50 75 52 Greatest Support 56 | 20 20 20 18 18 18 27 56 56 56 56 Greatest Overweight (x) 3 | . . 1 . 1 1 2 3 . 1 3 Average Overweight (x) . | . . . . . . . . . . . Largest Inventory Capacity 14 | . 6 6 6 6 6 8 10 10 14 14 Average Capacity 9 | . 6 6 6 6 6 7 7 10 10 14 Most Carried 14 | . 6 6 6 6 6 8 10 9 12 14 Average Carried 8 | . 4 5 6 6 5 6 7 8 9 12 Final Capacity 14 | 6 6 6 6 6 6 6 10 10 14 14 Final Carried 12 | 6 6 6 6 6 6 6 10 8 12 10 Class Distribution -------------------- 72% | Mutant 19% | Hacker-Mutant 6% | Scout Dominant Class ---------------- Mutant | -10/Materials Mutant | -9/Materials Mutant | -9/Mines Mutant | -9/Exiles Scout | -8/Mines Mutant | -8/Materials Mutant | -7/Factory Mutant | -6/Factory Mutant | -5/Factory Hacker-Mutant | -4/Factory Resources | -11 -10 -9 -9 -9 -8 -8 -7 -6 -5 -4 ----------- Run | Scr Mat Mat Min Exi Min Mat Fac Fac Fac Fac Matter Collected 1005 | 200 30 43 . . 178 50 125 . 195 184 Remotely . | . . . . . . . . . . . Salvage Created 3035 | . 123 134 . . 239 282 395 . 1144 718 Parts 130 | . 4 8 . . 13 10 19 . 44 32 Haulers Intercepted . | . . . . . . . . . . . Recyclers Shooed . | . . . . . . . . . . . Parts Field Recycled . | . . . . . . . . . . . Retrieved Matter . | . . . . . . . . . . . Parts Self-Destructed . | . . . . . . . . . . . Prevented . | . . . . . . . . . . . Kills | -11 -10 -9 -9 -9 -8 -8 -7 -6 -5 -4 ------- Run | Scr Mat Mat Min Exi Min Mat Fac Fac Fac Fac Combat Hostiles Destroyed 59 | . 3 3 . . 4 9 7 . 20 13 Melee 53 | . . 2 . . 4 9 7 . 20 11 Guns 4 | . 3 1 . . . . . . . . AOE 2 | . . . . . . . . . . 2 Classes Destroyed 9 | . 1 2 . . 3 1 1 . . 1 Builder 1 | . . . . . . . . . . 1 Tunneler 1 | . . . . . 1 . . . . . Swarmer 13 | . . . . . . 5 . . 4 4 Grunt 21 | . 3 1 . . 2 1 2 . 7 5 Brawler 2 | . . . . . 1 1 . . . . Duelist 2 | . . 1 . . . . . . . 1 Sentry 11 | . . 1 . . . 2 3 . 5 . Hunter 2 | . . . . . 1 . 1 . . . Programmer 8 | . . . . . . . 1 . 4 3 Best Kill Streak 6 | . 2 3 . . 2 6 2 . 6 5 Combat Bots Only 6 | . 2 3 . . 2 6 2 . 6 4 Max Kills in Single Turn 2 | . 1 1 . . 1 1 1 . 1 2 Gunslinging . | . . . . . . . . . . . Exploded 1 | . . . . . . . . . . 1 Melee 1 | . . 1 . . 1 1 1 . 1 1 Uniques/NPCs Destroyed . | . . . . . . . . . . . Combat | -11 -10 -9 -9 -9 -8 -8 -7 -6 -5 -4 -------- Run | Scr Mat Mat Min Exi Min Mat Fac Fac Fac Fac Damage Taken 6174 | . 405 144 . . 321 410 911 . 1756 2227 Core 1326 | . 63 92 . . 135 159 245 . 273 359 Absorbed by Shields 329 | . . . . . . . 73 . 256 . Core Remaining (%) 75 | 100 74 . . . 43 71 65 100 72 . Volleys Fired 36 | . 22 5 . . . . . . . 9 Largest 2 | . 2 2 . . . . . . . 1 Hottest 90 | . 90 46 . . . . . . . 43 Shots Fired 63 | . 44 10 . . . . . . . 9 Gun 54 | . 44 10 . . . . . . . . Cannon . | . . . . . . . . . . . Launcher 9 | . . . . . . . . . . 9 Special . | . . . . . . . . . . . Kinetic 22 | . 12 10 . . . . . . . . Thermal 32 | . 32 . . . . . . . . . Explosive . | . . . . . . . . . . . Electromagnetic 9 | . . . . . . . . . . 9 Robot Hit Streak 8 | . 8 4 . . . . . . . 6 Robot Miss Streak 3 | . 3 1 . . . . . . . 1 Penetration Max . | . . . . . . . . . . . Secondary Targets . | . . . . . . . . . . . Shots Hit Robots 252 | . 32 11 . . 11 20 38 . 87 53 Core Hits 90 | . 9 4 . . 5 9 9 . 28 26 Critical Hits 21 | . . . . . 1 3 3 . 13 1 Critical Kills 10 | . . . . . . 3 . . 7 . Critical Parts Destroyed 10 | . . . . . 1 . 2 . 6 1 Melee Attacks 236 | . . 4 . . 12 22 41 . 97 60 Impact 33 | . . . . . . 2 13 . 9 9 Slashing 203 | . . 4 . . 12 20 28 . 88 51 Piercing . | . . . . . . . . . . . Sneak Attacks 7 | . . . . . 3 . 1 . 1 2 Combat Hostiles 5 | . . . . . 2 . 1 . . 2 Follow-up Attacks 31 | . . . . . 1 2 6 . 16 6 Damage Inflicted 10199 | . 367 211 . . 701 873 1590 . 3891 2566 Guns 446 | . 367 79 . . . . . . . . Cannons . | . . . . . . . . . . . Explosions 395 | . . . . . . . . . . 395 Melee 9358 | . . 132 . . 701 873 1590 . 3891 2171 Ramming . | . . . . . . . . . . . Kinetic 167 | . 88 79 . . . . . . . . Thermal 279 | . 279 . . . . . . . . . Explosive . | . . . . . . . . . . . Electromagnetic 395 | . . . . . . . . . . 395 Impact 567 | . . . . . . 37 237 . 138 155 Slashing 8791 | . . 132 . . 701 836 1353 . 3753 2016 Piercing . | . . . . . . . . . . . Highest Corruption 3 | . . . . . . 2 . . 3 2 Average Corruption 1 | . . . . . . 2 . . 2 1 Corruption Purged . | . . . . . . . . . . . Effects 9 | . . . . . . 1 . . 6 2 Message Errors 4 | . . . . . . 1 . . 1 2 Matter Fused 1 | . . . . . . . . . 1 . Heat Flow Errors 1 | . . . . . . . . . 1 . Energy Discharges 1 | . . . . . . . . . 1 . Data Loss (minor) 2 | . . . . . . . . . 2 . Overload Shots . | . . . . . . . . . . . Overflow Damage 877 | . . . . . 53 62 188 . 341 233 Projectiles . | . . . . . . . . . . . Explosions . | . . . . . . . . . . . Melee 877 | . . . . . 53 62 188 . 341 233 Knockbacks 6 | . . . . . . . 2 . 2 2 Impact 6 | . . . . . . . 2 . 2 2 Kinetic . | . . . . . . . . . . . Secondary . | . . . . . . . . . . . Self-Inflicted Damage 36 | . . . . . . . . . . 36 Shots 3 | . . . . . . . . . . 3 Rammed . | . . . . . . . . . . . Targets Rammed . | . . . . . . . . . . . Kicked . | . . . . . . . . . . . Crushed . | . . . . . . . . . . . Highest Temperature 326 | . 326 24 . . 16 . 2 . 129 . Average Temperature 114 | . 136 8 . . 8 . 1 . 60 . Received Heat Transfer 1041 | . 198 39 . . 93 45 174 . 243 249 Effects 2 | . 2 . . . . . . . . . Energy Bleed 2 | . 2 . . . . . . . . . Siege Activations . | . . . . . . . . . . . Robots Corrupted . | . . . . . . . . . . . Combat Hostiles . | . . . . . . . . . . . Parts Fried 2 | . . . . . . . . . . 2 Impact Corruptions 2 | . . . . . . . . . 2 . Robots Melted . | . . . . . . . . . . . Combat Hostiles . | . . . . . . . . . . . Parts Melted 1 | . . . . . . . . . . 1 Heat Transferred 767 | . 767 . . . . . . . . . Parts Sabotaged . | . . . . . . . . . . . Parts Stolen . | . . . . . . . . . . . Parts Stripped . | . . . . . . . . . . . Power Chain Reactions . | . . . . . . . . . . . Missiles Intercepted . | . . . . . . . . . . . Alert | -11 -10 -9 -9 -9 -8 -8 -7 -6 -5 -4 ------- Run | Scr Mat Mat Min Exi Min Mat Fac Fac Fac Fac Peak Influence 382 | . 90 199 77 . 100 231 210 64 382 198 Average Influence 108 | . 57 94 77 . 32 163 127 64 120 100 Maximum Alert Level 1 | . . . . . . 1 1 . 1 . Low Security (%) 81 | . 100 100 100 . 100 47 69 100 72 100 Level 1 18 | . . . . . . 52 30 . 27 . Level 2 . | . . . . . . . . . . . Level 3 . | . . . . . . . . . . . Level 4 . | . . . . . . . . . . . Level 5 . | . . . . . . . . . . . High Security . | . . . . . . . . . . . Max Security . | . . . . . . . . . . . Squads Dispatched 13 | . 1 . . . . 2 2 . 4 4 Investigation 4 | . 1 . . . . 2 1 . . . Extermination 5 | . . . . . . . 1 . 2 2 Reinforcement 3 | . . . . . . . . . 2 1 Assault 1 | . . . . . . . . . . 1 Garrison . | . . . . . . . . . . . Intercept . | . . . . . . . . . . . Construction Impeded . | . . . . . . . . . . . Haulers Reinforced . | . . . . . . . . . . . Stealth | -11 -10 -9 -9 -9 -8 -8 -7 -6 -5 -4 --------- Run | Scr Mat Mat Min Exi Min Mat Fac Fac Fac Fac Distress Signals 7 | . . 2 . . . 1 . . 1 3 Communications Jammed . | . . . . . . . . . . . Distress Signals . | . . . . . . . . . . . Times Spotted 130 | . 9 12 . . 6 17 8 . 50 28 Peak Tracking Total 9 | . 3 6 . . 3 5 2 . 9 9 Tactical Retreats 22 | . 2 2 . . 1 3 1 . 11 2 Traps | -11 -10 -9 -9 -9 -8 -8 -7 -6 -5 -4 ------- Run | Scr Mat Mat Min Exi Min Mat Fac Fac Fac Fac Traps Triggered 8 | . 1 . . . . 1 2 . 4 . Indirectly . | . . . . . . . . . . . Trap Hack Attempts . | . . . . . . . . . . . Triggered . | . . . . . . . . . . . Disarmed . | . . . . . . . . . . . Reprogrammed . | . . . . . . . . . . . Reused . | . . . . . . . . . . . Traps Extracted . | . . . . . . . . . . . Installed . | . . . . . . . . . . . Triggered . | . . . . . . . . . . . Machines | -11 -10 -9 -9 -9 -8 -8 -7 -6 -5 -4 ---------- Run | Scr Mat Mat Min Exi Min Mat Fac Fac Fac Fac Machines Disabled 1 | . . . . . . . . . . 1 Max in Single Turn 1 | . . . . . . . . . . 1 Garrison Access 1 | . . . . . . . . . . 1 Machines Sabotaged . | . . . . . . . . . . . Garrisons Compromised . | . . . . . . . . . . . Overloaded Fab Kills . | . . . . . . . . . . . Fab Network Shutdowns . | . . . . . . . . . . . Hacking | -11 -10 -9 -9 -9 -8 -8 -7 -6 -5 -4 --------- Run | Scr Mat Mat Min Exi Min Mat Fac Fac Fac Fac Machines Accessed 14 | . 1 1 . 1 . 3 1 1 3 3 Terminals 11 | . 1 1 . . . 3 1 1 2 2 Fabricators . | . . . . . . . . . . . Repair Stations 2 | . . . . . . . . . 1 1 Recycling Units . | . . . . . . . . . . . Scanalyzers . | . . . . . . . . . . . Garrison Access . | . . . . . . . . . . . Total Hacks 32 | . 2 3 . 1 . 6 3 2 6 9 Successful 22 | . . 1 . 1 . 4 2 1 6 7 Failed 10 | . 2 2 . . . 2 1 1 . 2 Catastrophic 1 | . . . . . . . . . . 1 Database Lockouts . | . . . . . . . . . . . Manual 16 | . 2 3 . 2 . 2 . 2 3 2 Terminals 22 | . 2 3 . . . 6 3 2 4 2 Fabricators . | . . . . . . . . . . . Repair Stations 9 | . . . . . . . . . 2 7 Recycling Units . | . . . . . . . . . . . Scanalyzers . | . . . . . . . . . . . Garrison Access . | . . . . . . . . . . . Terminal Hacks 10 | . . . . 1 . 3 2 . 3 1 Record 1 | . . . . 1 . . . . . . Unreport Threat 2 | . . . . . . . . . 2 . Locate Traps 3 | . . . . . . 1 1 . 1 . Recall Investigation 1 | . . . . . . 1 . . . . Zone Layout 3 | . . . . . . 1 1 . . 1 Fabricator Hacks . | . . . . . . . . . . . Repair Station Hacks 8 | . . . . . . . . . 2 6 Scan Component 4 | . . . . . . . . . 1 3 Repair 4 | . . . . . . . . . 1 3 Recycling Unit Hacks . | . . . . . . . . . . . Scanalyzer . | . . . . . . . . . . . Garrison Access Hacks . | . . . . . . . . . . . Unauthorized Hacks 4 | . . 1 . . . 1 . 1 1 . Terminals 4 | . . 1 . . . 1 . 1 1 . Botnet 4 | . . 1 . . . 1 . 1 1 . Fabricators . | . . . . . . . . . . . Repair Stations . | . . . . . . . . . . . Recycling Units . | . . . . . . . . . . . Scanalyzers . | . . . . . . . . . . . Garrison Access . | . . . . . . . . . . . Data Cores Recovered . | . . . . . . . . . . . Used . | . . . . . . . . . . . Hacking Detections 7 | . 1 1 . . . 1 1 . 1 2 Full Trace Events 1 | . . . . . . 1 . . . . Feedback Events . | . . . . . . . . . . . Feedback Blocked . | . . . . . . . . . . . Robot Schematics Acquired . | . . . . . . . . . . . Robots Built . | . . . . . . . . . . . Matter . | . . . . . . . . . . . Time . | . . . . . . . . . . . Total Robot Build Rating . | . . . . . . . . . . . Part Schematics Acquired . | . . . . . . . . . . . Parts Built . | . . . . . . . . . . . Matter . | . . . . . . . . . . . Time . | . . . . . . . . . . . Total Part Build Rating . | . . . . . . . . . . . Parts Repaired 4 | . . . . . . . . . 1 3 Time 170 | . . . . . . . . . 44 126 Parts Recycled . | . . . . . . . . . . . Recycled Matter . | . . . . . . . . . . . Retrieved Matter . | . . . . . . . . . . . Retrieved Components . | . . . . . . . . . . . Parts Scanalyzed . | . . . . . . . . . . . Part Schematics Acquired . | . . . . . . . . . . . Parts Damaged . | . . . . . . . . . . . Bothacking | -11 -10 -9 -9 -9 -8 -8 -7 -6 -5 -4 ------------ Run | Scr Mat Mat Min Exi Min Mat Fac Fac Fac Fac Used RIF Installer . | . . . . . . . . . . . Robots Hacked . | . . . . . . . . . . . Non-combat . | . . . . . . . . . . . Combat . | . . . . . . . . . . . Robot Hacks Applied . | . . . . . . . . . . . Relay Couplers Released 2 | . . . . . . . . . . 2 Machine Destruction 2 | . . . . . . . . . . 2 Robots Rewired . | . . . . . . . . . . . Allies Hacked . | . . . . . . . . . . . Hacks Repelled . | . . . . . . . . . . . Allies | -11 -10 -9 -9 -9 -8 -8 -7 -6 -5 -4 -------- Run | Scr Mat Mat Min Exi Min Mat Fac Fac Fac Fac Total Allies . | . . . . . . . . . . . Largest Group . | . . . . . . . . . . . Highest-Rated Group . | . . . . . . . . . . . Highest-Rated Ally . | . . . . . . . . . . . Total Orders . | . . . . . . . . . . . Ally Attacks . | . . . . . . . . . . . Total Damage . | . . . . . . . . . . . Kills . | . . . . . . . . . . . Allies Corrupted . | . . . . . . . . . . . Allies Melted . | . . . . . . . . . . . Intel | -11 -10 -9 -9 -9 -8 -8 -7 -6 -5 -4 ------- Run | Scr Mat Mat Min Exi Min Mat Fac Fac Fac Fac Robot Analysis Total . | . . . . . . . . . . . Derelict Logs Recovered . | . . . . . . . . . . . Drone Launches . | . . . . . . . . . . . Drone Recoveries . | . . . . . . . . . . . Exploration | -11 -10 -9 -9 -9 -8 -8 -7 -6 -5 -4 ------------- Run | Scr Mat Mat Min Exi Min Mat Fac Fac Fac Fac Turns Passed 4530 | . 252 314 19 303 283 317 769 68 1339 866 Spaces Moved 3249 | 1 128 376 34 328 329 266 480 67 821 419 Core . | . . . . . . . . . . . Treads . | . . . . . . . . . . . Legs 168 | 1 128 39 . . . . . . . . Wheels 1757 | . . . . . . . 451 67 821 418 Hover 1222 | . . 337 34 328 329 193 . . . 1 Flight 102 | . . . . . . 73 29 . . . Fastest Speed 37 | 120 120 56 56 56 56 37 100 100 100 100 Average Speed 89 | 120 120 65 56 92 56 49 102 100 107 104 Slowest Speed 280 | 120 120 150 56 116 116 197 280 100 110 180 Overloaded Moves . | . . . . . . . . . . . Propulsion Burnouts . | . . . . . . . . . . . Robots Hopped . | . . . . . . . . . . . Cave-ins Triggered . | . . . . . . . . . . . Exploration Rate (%) 27 | 2 22 32 6 68 79 35 15 2 27 15 Regions Visited 10 Branch Regions 3 Pre-discovered Areas . | . . . . . . . . . . . Known Exits Taken 8 | . . 1 1 1 1 1 1 1 1 . Unknown Exits Taken 2 | 1 1 . . . . . . . . . Scrap Searched 2 | . . . . . 2 . . . . . Spaces Dug 4 | . . . . . . . . . 1 3 Terrain Destroyed 4 | . . . . . . . . . 1 3 Melee 4 | . . . . . . . . . 1 3 Projectile . | . . . . . . . . . . . AOE . | . . . . . . . . . . . Actions | -11 -10 -9 -9 -9 -8 -8 -7 -6 -5 -4 --------- Run | Scr Mat Mat Min Exi Min Mat Fac Fac Fac Fac Total 4555 | . 184 434 33 328 415 429 705 68 1191 768 Wait 901 | . 16 14 . . 69 129 168 . 245 260 Move 3239 | . 127 375 33 327 328 265 479 66 820 419 Hop . | . . . . . . . . . . . Pick Up 34 | . 6 9 . . 1 5 6 . 5 2 Fast Attach 43 | . 3 6 . 1 2 1 9 . 11 10 Attach 26 | . 3 2 . . 2 4 2 2 5 6 Detach 18 | . 2 4 . . 1 . 1 . 6 4 Swap 11 | . . 1 . . . 3 1 . 2 4 Drop 32 | . 5 14 . . 1 2 4 . 4 2 Fire 36 | . 22 5 . . . . . . . 9 Melee 199 | . . 4 . . 11 20 35 . 77 52 Ram . | . . . . . . . . . . . Kick . | . . . . . . . . . . . Crush . | . . . . . . . . . . . Escape Stasis 16 | . . . . . . . . . 16 . Rewire . | . . . . . . . . . . . Trap . | . . . . . . . . . . . Miscellaneous . | . . . . . . . . . . . Route ------- -11/Scrapyard -10/Materials -9/Materials -9/Mines -9/Exiles -8/Mines -8/Materials -7/Factory -6/Factory -5/Factory (discovered 2 exits: *Fac / *Ext) -4/Factory History --------- Turn | Location | Event 1 | -11/Scrapyard | Discovered new exit (range 0) 1 | -11/Scrapyard | Entered Materials 144 | -10/Materials | Lost 3 parts (1p1n1w) 242 | -10/Materials | Discovered new exit (range 10) 253 | -10/Materials | Entered another Materials area 253 | -9/Materials | Evolved 2 slots: Utility x2 314 | -9/Materials | Build established: Mutant 563 | -9/Materials | Discovered new exit (range 7) 566 | -9/Materials | Identified exit to Mines 567 | -9/Materials | Entered Mines 583 | -9/Mines | Deemed a non-threat by the Exiles lab entrance 583 | -9/Mines | Discovered new exit (range 5) 585 | -9/Mines | Identified exit to Exiles 586 | -9/Mines | Entered Exiles 600 | -9/Exiles | Met 8R-AWN 608 | -9/Exiles | Met EX-HEX 627 | -9/Exiles | Met EX-BIN 635 | -9/Exiles | Aligned with FarCom system 635 | -9/Exiles | Given EX-Vault access code 657 | -9/Exiles | Opened EX-Vault 659 | -9/Exiles | Found Prototype Slashing Weapon 659 | -9/Exiles | Identified Longsword +1 703 | -9/Exiles | Warned to stay clear of 0b10 Research branches 741 | -9/Exiles | Met EX-DEC 879 | -9/Exiles | Discovered new exit (range 11) 888 | -9/Exiles | Identified exit to Mines 889 | -9/Exiles | Left Exiles lab with Longsword +1 889 | -9/Exiles | Entered Mines 898 | -8/Mines | Core integrity fell below 50% 1168 | -8/Mines | Discovered new exit (range 7) 1171 | -8/Mines | Identified exit to Materials 1172 | -8/Mines | Entered Materials 1172 | -8/Materials | Evolved 2 slots: Propulsion x1, Utility x1 1415 | -8/Materials | Lost 5 parts (1p3n1w) 1482 | -8/Materials | Discovered new exit (range 16) 1489 | -8/Materials | Identified exit to Factory 1489 | -8/Materials | Entered Factory 1489 | -7/Factory | Evolved 2 slots: Power x1, Propulsion x1 2221 | -7/Factory | Discovered new exit (range 12) 2233 | -7/Factory | Identified exit to Factory 2258 | -7/Factory | Entered another Factory area 2258 | -6/Factory | Evolved 2 slots: Utility x1, Weapon x1 2316 | -6/Factory | Discovered new exit (range 5) 2320 | -6/Factory | Identified exit to Factory 2326 | -6/Factory | Entered another Factory area 2326 | -5/Factory | Evolved 2 slots: Utility x2 2391 | -5/Factory | Repaired Arm. Huge Wheel 2832 | -5/Factory | Found Powered Armor 3441 | -5/Factory | Lost 3 parts (3u) 3600 | -5/Factory | Discovered new exit (range 23) 3623 | -5/Factory | Discovered new exit (range 17) 3623 | -5/Factory | Identified exit to Factory 3639 | -5/Factory | Identified exit to Extension 3665 | -5/Factory | Entered another Factory area 3665 | -4/Factory | Evolved 2 slots: Utility x2 3733 | -4/Factory | Repaired Arm. Huge Wheel 3772 | -4/Factory | Repaired Great Maul 3818 | -4/Factory | Repaired Arm. Huge Wheel 3958 | -4/Factory | Build established: Hacker-Mutant 4182 | -4/Factory | Found Unknown Device 4182 | -4/Factory | Identified Quantum Capacitor 4430 | -4/Factory | Lost 3 parts (1n2w) 4531 | -4/Factory | Self-destructed Last Messages --------------- 04458_ K-01 Serf collects debris. 04470_ O-24 Administrator: "IFF HANDSHAKE FAILED. SECURING TERMINAL." 04476_ ALERT: Hostiles spotted, dispatching reinforcements to Terminal F020. 04476_ Plasma Rifle severed. 04482_ Lgt. Antimatter Reactor destroyed. 04484_ Chainsword destroyed. 04494_ R-10 Processor collects Plasma Rifle. 04496_ Door malfunctions. 04496_ ALERT: Garrison Access compromised, dispatching assault squad. 04496_ Garrison Access disabled. 04496_ Relay Coupler [NC] tumbles out of Garrison Access. 04496_ Relay Coupler [Grunt] tumbles out of Garrison Access. 04500_ Antigrav System destroyed. 04506_ W-44 Eye sends out distress signal. 04515_ Flexi-carbon Leg destroyed. 04518_ Centrium Wheel destroyed. 04521_ W-44 Eye sends out distress signal. 04523_ P-70 Sage resets W-44 Eye, system corruption cleaned. 04524_ P-70 Sage resets P-70 Sage, system corruption cleaned. Map ----- +----------------------------------------------------+ | ?????????????????????????????????????????????????? | | ?????????????????????????????????????????????????? | | ?????????????????????????????????????????????????? | | ?????????????????????????????????????????????????? | | ?????????????????????????????????????????????????? | | ?????????????????????????????????????????????????? | | ?????????????????????????????????????????????????? | | ?????????????????????????????????????????????????? | | ?????????????????????????????????????????????????? | | ?????????????????????????????????????????????????? | | ?????????????????????????????????????????????????? | | ?????????????????????????????????????????????????? | | ?????????????????????????????????????????????????? | | ?????????????????????????????????????????????????? | | ?????????????????w???????????????????????????????? | | ?????????????????????????????????????????????????? | | ############+## #??????????????????????????????? | | #??????????????????????????????? | | #??????????????????????????????? | | #??????????????????????????????? | | ##+#########+#???????????????????????????????????? | | #??????????????????????????????????????###?? | | #?????????????? ????????????????????? ??? | | #?????????????? ??????????????????? ???? | | #???????????????# ###########?????#? ????? | | # #??# p@ # ? # ?????? | | # #??# # ? # ??????? | | # #??# p # / ???????? | | # #??# p g # #????????? | | ! # #??# """g #g #????????? | | # #??# """"" w # #????????? | | # #??# """"" #g #????????? | | %%# #??#########w### #????????? | | ####/####################### #????????? | | ???# #????# ########## | | ???# #????# | | ???# #????# " " " " | | ???# #????# " " " " ###### | | ???# #????# " " " " ""######/########### | | #### ###### " " " " ""# ! #????? | | % " " " " T"# ] "G"" #??????? | | # " " " " ""# !! "[" #????????? | | # " " " " ""# ! #??????????? | | + " " " " ### ! #???????????? | | ####+### " " " " #?# #???????????? | | ???????# ### #???????????? | | ???????+ + """""" #???????????? | | ???????########"" ""##### """""" #???????????? | | ???????#??????#""F""#???# """""" #???????????? | | ???????#??????# """ #???# """""" #???????????? | +----------------------------------------------------+ Best States ------------- Heat Dissipation 59 Energy Generation 34 Energy Capacity 530 Matter Stores 300 Matter Capacity 300 Sight Range 23 Robot Scan Range 13 Terrain Scan Density 10 ECM Strength 2 Jamming Range 12 Armor Coverage 625 Resistance: EM 25 Propulsion Shielding 66 Evasion (%) 62 Target Analysis 5 Offensive Hacking 26 Item Schematics ----------------- None Robot Schematics ------------------ None Fabricated ------------ Nothing Alien Tech Used ----------------- None Achievements -------------- None Challenges ------------ None Game ------ Seed ActuatorAntimissileCompactor Manual? 0 Play Time 01:05:50 Cumulative 32.9 hours Start 2020.07.30 @ 00:22:53 End 2020.07.30 @ 01:29:59 Sessions 1 Manual Loads 0 Difficulty Rogue Special Mode None Game No. 76 Rogue 75 Adventurer 0 Explorer 1 Win Type - Total 0 Types 0/0/0/0/0/0/0 Lore% 23 Gallery% 40 Achievement% 27 Wizard Run 0 Options --------- ASCII 1 Keyboard 1 Movement Vi Keybinds 0 Fullscreen 2 Font 24/Proggy Map View 76x50 Tactical HUD 1 Map Filters NONE Filters NONE Steam 1 RUN: 9ac68c70-0393-4c6e-8668-f4866abfd5d2